bitfinex/quotes_SOLUSD_20250930
["timestamp","ask_amount","ask_price","bid_price","bid_amount"]
[1759216020286,1.50817784,211.15,211.06,0.02]
[1759216020493,1.50817784,211.16,211.07,13.59559401]
[1759216020794,0.68,211.15,211.08,0.02]
[1759216021188,0.68,211.15,211.09,13.59559401]
[1759216021502,0.68,211.17,211.1,0.02]
[1759216022503,0.68,211.17,211.11,13.59559401]
[1759216022722,0.68,211.17,211.11,35.99559401]
[1759216022890,6.24347977,211.18,211.11,35.99559401]
[1759216023093,0.68,211.16,211.11,35.99559401]
[1759216023307,0.68,211.15,211.11,35.99559401]
[1759216023504,0.68,211.14,211.11,35.99559401]
[1759216023710,0.68,211.13,211.11,35.99559401]
[1759216024113,4.73530193,211.18,211.11,35.99559401]
[1759216024321,0.68,211.15,211.11,35.99559401]
[1759216024610,0.68,211.14,211.11,35.99559401]
[1759216025713,6.24401646,211.16,211.11,35.99559401]
[1759216025896,1.50817784,211.12,211.03,13.59559401]
[1759216026099,2.18817784,211.11,211.03,39.59559401]
[1759216026308,2.18817784,211.1,211.03,39.59559401]
[1759216026611,4.73583862,211.16,211.02,0.02]
[1759216026612,2.18817784,211.09,211.02,13.59559401]
[1759216026813,0.68,211.08,211.02,4.7388873]
[1759216027014,2.18817784,211.07,211.02,4.7388873]
[1759216027192,0.68,211.06,211.02,4.7388873]
[1759216027787,0.68,211.06,211.01,18.35465945]
[1759216027988,0.68,211.05,211.01,18.33465945]
[1759216028190,1.50817784,211.06,211.01,18.33465945]
[1759216028493,2.18817784,211.06,211.01,18.33465945]
[1759216028906,0.68,211.06,211.01,18.35465945]
[1759216029102,2.18817784,211.07,211.01,18.35465945]
[1759216030109,1.50817784,211.03,211.01,13.59559401]
[1759216030308,2.18817784,211.02,210.95,0.02]
[1759216030611,2.18817784,211.02,210.97,13.59559401]
[1759216030819,0.68,211.01,210.97,13.59559401]
[1759216031004,0.68,211.01,210.96,26.0]
[1759216031005,1.50817784,211.01,210.95,0.02]
[1759216031212,2.18817784,211.0,210.95,0.02]
[1759216031412,1.50817784,211.01,210.95,13.61559401]
[1759216032315,1.50817784,211.0,210.95,13.61559401]
[1759216032497,0.68,210.99,210.95,13.59559401]
[1759216032698,1.50817784,211.0,210.95,13.59559401]
[1759216033009,0.68,211.0,210.95,13.61559401]
[1759216033600,0.68,211.04,210.97,13.59559401]
[1759216033807,1.50817784,211.03,210.97,13.61559401]
[1759216034111,0.68,211.05,210.98,0.02]
[1759216034315,1.50817784,211.04,210.98,0.02]
[1759216034619,4.73765352,211.08,210.97,13.59559401]
[1759216034620,1.50817784,211.03,210.97,13.59559401]
[1759216034793,2.18817784,211.02,210.97,13.59559401]
[1759216035719,6.24710307,211.02,210.97,13.59559401]
[1759216035920,0.68,211.01,210.97,13.59559401]
[1759216039094,11.84541955,211.06,210.97,13.59559401]
[1759216039417,0.68,211.0,210.95,13.59559401]
[1759216039610,0.69,210.99,210.95,13.59559401]
[1759216039810,0.69,210.99,210.95,35.99559401]
[1759216041199,0.69,210.99,210.95,40.73598061]
[1759216050505,2.17817784,210.98,210.95,35.99559401]
[1759216050706,1.50817784,211.01,210.96,0.02]
[1759216050918,2.17817784,211.03,210.96,0.02]
[1759216051099,2.17817784,211.03,210.97,0.02]
[1759216051827,1.50817784,211.02,210.95,52.60719147]
[1759216052028,2.17817784,211.02,210.95,52.60719147]
[1759216052838,1.50817784,210.99,210.95,40.73604191]
[1759216053025,0.67,210.99,210.95,40.73604191]
[1759216053610,0.67,211.0,210.95,40.73604191]
[1759216053931,0.67,211.0,210.95,52.60719147]
[1759216056917,0.67,211.0,210.95,52.58719147]
[1759216057334,1.50817784,211.01,210.95,52.58719147]
[1759216057633,2.17817784,211.0,210.95,52.58719147]
[1759216057936,0.67,210.99,210.95,52.58719147]
[1759216059415,1.50817784,211.0,210.95,52.58719147]
[1759216059616,0.67,210.99,210.95,52.58719147]
[1759216060324,1.50817784,211.01,210.95,52.58719147]
[1759216060642,4.73821628,211.05,210.95,52.58719147]
[1759216060643,1.50817784,211.02,210.96,0.02]
[1759216061030,2.17817784,211.02,210.96,0.02]
[1759216061932,2.17817784,211.02,210.95,52.58719147]
[1759216062130,0.67,211.01,210.95,52.58719147]
[1759216062324,0.67,211.01,210.95,52.60719147]
[1759216062527,0.67,211.03,210.96,0.02]
[1759216062730,0.67,211.03,210.99,13.59559401]
[1759216062929,0.67,211.02,210.99,13.59559401]
[1759216063131,0.67,211.01,210.99,13.59559401]
[1759216063822,0.67,211.01,211.0,18.3349305]
[1759216064025,0.67,211.01,211.0,40.7349305]
[1759216065020,0.67,211.04,211.0,40.7349305]
[1759216065226,2.3559408,211.05,211.0,40.7349305]
[1759216065421,0.67,211.04,211.0,40.7349305]
[1759216065627,0.67,211.03,211.0,40.7349305]
[1759216066641,0.67,211.02,211.0,35.99559401]
[1759216066836,0.67,211.02,211.0,40.7349223]
[1759216068225,0.67,211.02,211.0,35.99559401]
[1759216069529,0.67,211.02,211.0,40.73489554]
[1759216069831,0.67,211.02,211.0,35.99559401]
[1759216070139,0.67,211.02,211.0,40.73492055]
[1759216071338,2.3559408,211.04,211.0,40.73492055]
[1759216071537,3.0259408,211.01,211.0,22.4]
[1759216071735,3.0759408,211.01,211.0,22.4]
[1759216072041,0.72,211.01,211.0,22.4]
[1759216072242,3.0759408,211.01,210.91,22.4]
[1759216072547,2.3559408,210.99,210.92,13.59559401]
[1759216072744,0.72,210.98,210.92,13.59559401]
[1759216073044,19.77385637,211.04,210.94,13.59559401]
[1759216073045,0.72,211.01,210.94,13.59559401]
[1759216073243,0.72,211.01,210.94,13.61559401]
[1759216073419,0.72,211.0,210.94,13.61559401]
[1759216074327,0.72,211.0,210.94,27.91026234]
[1759216074526,0.72,211.0,210.94,13.61559401]
[1759216075138,0.72,211.0,210.96,13.59559401]
[1759216077839,0.72,211.0,210.97,4.74001042]
[1759216078239,0.72,211.02,210.98,13.59559401]
[1759216078442,0.72,211.02,210.98,35.99559401]
[1759216079334,0.72,211.02,210.99,4.73956111]
[1759216081140,0.72,211.01,210.98,22.4]
[1759216081328,0.72,211.0,210.98,22.4]
[1759216081531,0.72,210.99,210.98,22.4]
[1759216084332,5.45956111,210.99,210.94,48.4]
[1759216084536,0.72,210.98,210.94,53.1406812]
[1759216084736,0.72,210.97,210.94,53.1406812]
[1759216085661,0.72,210.99,210.95,13.59559401]
[1759216085861,0.72,210.98,210.95,13.59559401]
[1759216086565,0.72,210.98,210.96,4.74023511]
[1759216088167,0.72,210.97,210.95,13.59559401]
[1759216088662,11.84736571,211.02,210.94,22.4]
[1759216088663,0.72,210.96,210.94,22.4]
[1759216088842,0.72,210.97,210.95,13.59559401]
[1759216089043,0.72,210.99,210.95,13.59559401]
[1759216089259,0.72,210.98,210.95,13.59559401]
[1759216090260,0.72,210.98,210.95,18.33589286]
[1759216090445,0.72,210.98,210.95,40.73589286]
[1759216093572,0.72,210.97,210.95,40.73589286]
[1759216093753,0.72,210.97,210.95,35.99559401]
[1759216095851,0.72,210.97,210.95,40.73595812]
[1759216096047,5.54517635,211.02,210.95,40.73595812]
[1759216096269,0.7,210.99,210.95,40.73595812]
[1759216096476,0.7,211.02,210.96,0.02]
[1759216097075,0.7,211.02,210.95,40.73595812]
[1759216097381,0.7,211.01,210.95,52.58710768]
[1759216097572,0.7,211.0,210.95,40.73595812]
[1759216097753,2.3559408,211.02,210.95,40.73595812]
[1759216097754,0.7,210.99,210.95,40.73595812]
[1759216097954,0.7,210.98,210.95,40.73595812]
[1759216101376,4.7388873,211.02,210.95,40.73595812]
[1759216101584,0.65,211.01,210.95,40.73595812]
[1759216101875,0.65,211.0,210.95,40.73595812]
[1759216102079,0.65,210.99,210.95,40.73595812]
[1759216108455,8.57791733,211.03,210.96,0.02]
[1759216108662,0.65,211.02,210.97,13.59559401]
[1759216108861,0.65,211.01,210.97,13.59559401]
[1759216109061,0.65,211.0,210.97,13.59559401]
[1759216109462,0.65,211.0,210.97,18.33543174]
[1759216110677,2.3559408,211.05,210.98,0.02]
[1759216110678,3.18923555,211.04,210.98,0.02]
[1759216110894,0.65,211.07,211.01,39.59559401]
[1759216111058,5.54517635,211.12,211.02,0.02]
[1759216111258,3.18923555,211.11,211.02,0.02]
[1759216111490,3.18923555,211.1,211.02,0.02]
[1759216111689,3.18923555,211.09,211.02,0.02]
[1759216111990,0.65,211.09,211.01,39.59559401]
[1759216112157,0.65,211.08,211.01,39.59559401]
[1759216112359,0.65,211.07,211.01,39.59559401]
[1759216112558,0.65,211.06,211.01,39.59559401]
[1759216112858,0.65,211.05,211.01,44.33462638]
[1759216113060,0.65,211.04,211.0,13.59559401]
[1759216113261,26.0,211.1,211.0,13.61559401]
[1759216113262,0.65,211.06,211.0,13.61559401]
[1759216116393,0.65,211.06,211.01,4.73911189]
[1759216117079,0.65,211.06,211.01,27.13911189]
[1759216119873,3.18923555,211.11,211.02,13.61559401]
[1759216120098,0.65,211.1,211.03,0.02]
[1759216120789,0.65,211.1,211.02,13.59559401]
[1759216120993,0.65,211.09,211.02,13.59559401]
[1759216121288,0.65,211.08,211.02,13.59559401]
[1759216121493,0.65,211.07,211.02,13.59559401]
[1759216121693,0.65,211.06,211.04,13.59559401]
[1759216121893,0.65,211.05,211.04,13.59559401]
[1759216122068,0.65,211.06,211.04,13.59559401]
[1759216123194,0.65,211.06,211.04,35.99559401]
[1759216124499,0.65,211.06,211.04,40.73389588]
[1759216124695,7.9263263,211.11,211.04,40.73389588]
[1759216124990,4.73709075,211.11,211.04,40.75389588]
[1759216125184,0.65,211.1,211.04,40.75389588]
[1759216125386,0.65,211.09,211.04,40.73389588]
[1759216125590,0.65,211.08,211.04,40.73389588]
[1759216126988,0.65,211.07,211.04,40.73389588]
[1759216128401,0.65,211.07,211.04,35.99559401]
[1759216128598,0.65,211.06,211.04,35.99559401]
[1759216128997,0.65,211.05,211.01,26.0]
[1759216129198,0.65,211.04,211.02,13.59559401]
[1759216132475,0.69,211.03,211.0,22.4]
[1759216132694,0.69,211.02,211.0,22.4]
[1759216132896,0.69,211.02,210.98,35.99559401]
[1759216133605,0.69,211.02,211.0,13.59559401]
[1759216134800,4.73797437,211.07,211.0,4.73927624]
[1759216135018,0.69,211.04,211.0,27.13927624]
[1759216135215,0.69,211.04,211.01,13.59559401]
[1759216138089,0.69,211.04,211.01,18.33466892]
[1759216140887,0.69,211.04,211.01,40.73466892]
[1759216144810,4.73727663,211.1,211.01,52.58244864]
[1759216145149,0.69,211.07,211.01,52.58244864]
[1759216145406,0.69,211.1,211.02,0.02]
[1759216146095,0.69,211.1,211.01,52.58244864]
[1759216146302,0.69,211.09,211.01,52.58244864]
[1759216146605,32.24370287,211.11,211.01,52.58244864]
[1759216146606,0.69,211.08,211.01,52.58244864]
[1759216146800,1.50682485,211.1,211.01,52.58244864]
[1759216147007,0.69,211.07,211.01,52.58244864]
[1759216147200,0.69,211.06,211.01,52.58244864]
[1759216147402,0.69,211.06,211.01,52.60244864]
[1759216147702,0.69,211.06,211.03,13.59559401]
[1759216148285,0.69,211.08,211.04,4.73843821]
[1759216148510,0.69,211.08,211.05,33.34]
[1759216148700,0.69,211.07,211.05,33.34]
[1759216149485,0.69,211.07,211.05,38.07819636]
[1759216151901,0.69,211.09,211.05,38.07819636]
[1759216152108,0.69,211.08,211.05,38.07819636]
[1759216154413,0.69,211.07,211.05,33.34]
[1759216154594,0.69,211.07,211.05,38.07818412]
[1759216155803,3.18923555,211.1,211.05,38.07818412]
[1759216156003,0.72,211.09,211.05,38.07818412]
[1759216156317,0.72,211.08,211.05,38.07818412]
[1759216156913,0.72,211.08,211.06,33.32]
[1759216157824,0.72,211.07,211.06,33.32]
[1759216157998,0.72,211.09,211.06,33.32]
[1759216158192,0.72,211.08,211.06,33.32]
[1759216158812,0.72,211.08,211.05,13.59559401]
[1759216159010,0.72,211.08,211.06,33.32]
[1759216159524,0.72,211.08,211.05,13.59559401]
[1759216159723,0.72,211.07,211.06,33.32]
[1759216160146,0.72,211.09,211.06,33.32]
[1759216160294,7.93435887,211.1,211.06,33.32]
[1759216160612,0.72,211.08,211.06,33.32]
[1759216162525,0.69,211.08,211.06,33.32]
[1759216163423,4.73721018,211.1,211.07,33.32]
[1759216163728,0.69,211.09,211.07,33.32]
[1759216164032,0.69,211.08,211.05,35.99559401]
[1759216164206,0.69,211.08,211.06,33.32]
[1759216164527,4.73721018,211.1,211.06,33.32]
[1759216164706,0.69,211.09,211.06,33.32]
[1759216164905,0.69,211.08,211.06,33.32]
[1759216165426,4.73721018,211.1,211.06,33.32]
[1759216165723,5.42732446,211.09,211.06,33.32]
[1759216165922,1.50682485,211.07,211.01,22.4]
[1759216166127,0.69,211.06,211.02,33.99]
[1759216166311,3.19714869,211.07,211.03,0.67]
[1759216166627,0.69,211.07,211.04,33.32]
[1759216166805,3.88714869,211.07,211.04,33.32]
[1759216167122,0.69,211.07,211.04,33.32]
[1759216167314,0.69,211.06,211.04,33.32]
[1759216167523,0.69,211.05,211.01,22.4]
[1759216167824,0.69,211.05,211.02,33.32]
[1759216170525,5.42825924,211.05,211.02,33.32]
[1759216170914,1.50682485,211.03,211.01,33.32]
[1759216171120,0.69,211.03,211.01,33.32]
[1759216172507,5.42867601,211.03,211.01,33.32]
[1759216172920,0.69,211.02,211.01,33.32]
[1759216175536,5.42845383,211.04,211.01,33.32]
[1759216176030,0.69,211.03,211.01,33.32]
[1759216176731,5.42869806,211.03,211.01,33.32]
[1759216177716,4.73869806,211.03,211.01,33.32]
[1759216177917,4.73869806,211.03,211.02,33.32]
[1759216178119,5.42869806,211.03,211.02,33.32]
[1759216180010,5.42869806,211.03,210.98,36.66559401]
[1759216180212,0.69,211.02,210.99,33.32]
[1759216180824,4.73869806,211.03,210.98,22.4]
[1759216181135,4.73869806,211.03,210.96,26.0]
[1759216181136,0.69,211.01,210.99,33.32]
[1759216184226,0.69,211.0,210.99,33.32]
[1759216184537,2.19682485,211.0,210.96,33.3]
[1759216184743,0.69,210.99,210.96,33.3]
[1759216186041,0.69,210.98,210.93,0.67]
[1759216186342,4.74001042,210.97,210.94,33.3]
[1759216186646,0.69,210.96,210.91,0.67]
[1759216186839,0.69,210.96,210.92,33.32]
[1759216187217,0.69,210.96,210.92,33.99]
[1759216187417,0.69,210.96,210.93,33.32]
[1759216187617,4.74001042,210.97,210.93,33.32]
[1759216187917,5.43001042,210.97,210.93,33.32]
[1759216188127,0.69,210.96,210.93,33.32]
[1759216188439,0.69,210.96,210.92,0.67]
[1759216188440,0.69,210.96,210.94,33.32]
[1759216190042,0.69,210.95,210.94,33.32]
[1759216190212,0.69,210.97,210.94,33.32]
[1759216190637,0.69,210.96,210.94,33.32]
[1759216199161,0.69,210.96,210.92,0.67]
[1759216199347,0.69,210.96,210.93,33.32]
[1759216200448,5.43024995,210.96,210.93,33.32]
[1759216201740,23.69840414,210.99,210.93,33.32]
[1759216201741,0.7,210.95,210.93,33.32]
[1759216202133,0.7,210.97,210.92,0.67]
[1759216202447,0.7,210.96,210.93,33.32]
[1759216204250,5.4404034,210.96,210.93,33.32]
[1759216212256,0.7,210.95,210.89,22.4]
[1759216212460,0.7,210.95,210.9,33.3]
[1759216212679,14.96228339,210.94,210.91,33.3]
[1759216212956,0.7,210.93,210.91,33.3]
[1759216213859,0.7,210.92,210.88,0.2]
[1759216214068,4.74135887,210.91,210.88,33.5]
[1759216214276,0.7,210.9,210.88,0.2]
[1759216215644,1.90236131,210.89,210.88,0.2]
[1759216215955,2.60236131,210.89,210.88,0.2]
[1759216216159,7.34416983,210.89,210.88,0.2]
[1759216223646,9.70135902,210.89,210.88,0.2]
[1759216231571,7.34416983,210.89,210.88,0.2]
[1759216231872,9.70135902,210.89,210.88,0.2]
[1759216237955,9.00135902,210.89,210.88,0.2]
[1759216238673,9.68135902,210.89,210.88,0.2]
[1759216240677,1.90236131,210.89,210.88,0.87]
[1759216240981,1.90236131,210.89,210.88,0.2]
[1759216241187,4.74159253,210.9,210.88,0.87]
[1759216241370,6.64386336,210.9,210.88,0.87]
[1759216242485,1.90227083,210.9,210.89,0.67]
[1759216242787,36.33718919,210.95,210.89,0.67]
[1759216242788,4.74048801,210.95,210.89,0.67]
[1759216242966,18.33608202,210.95,210.89,0.67]
[1759216243482,4.73978576,210.98,210.89,0.67]
[1759216243684,14.26296146,210.96,210.89,0.67]
[1759216244052,8.60098982,210.98,210.89,0.67]
[1759216244257,14.26228339,210.97,210.9,13.59559401]
[1759216244474,14.26228339,210.97,210.91,5.41135887]
[1759216244694,5.41978576,210.98,210.92,0.67]
[1759216244980,19.01537977,210.98,210.92,0.67]
[1759216247078,19.01537977,210.98,210.92,5.41096204]
[1759216247279,0.68,210.98,210.93,0.67]
[1759216247488,0.68,210.98,210.94,0.67]
[1759216248581,13.59559401,210.99,210.95,0.67]
[1759216248780,13.59559401,210.99,210.96,13.59559401]
[1759216248983,13.59559401,210.99,210.97,0.67]
[1759216249180,0.68,211.02,210.98,0.67]
[1759216249885,5.41892441,211.02,210.98,0.67]
[1759216250083,6.9273055,211.02,210.95,13.59559401]
[1759216250257,1.50838109,211.0,210.94,23.07]
[1759216250459,2.18838109,210.99,210.94,22.4]
[1759216250673,0.68,210.99,210.94,22.4]
[1759216250984,0.68,210.98,210.94,22.4]
[1759216251188,2.18838109,211.0,210.94,27.81063577]
[1759216251973,0.68,211.0,210.94,27.81063577]
[1759216252982,5.41934636,211.0,210.95,5.45039816]
[1759216253183,0.68,211.0,210.96,0.71]
[1759216253375,5.41934219,211.0,210.96,0.71]
[1759216253576,5.41934219,211.0,210.95,4.74039816]
[1759216253777,0.69,210.99,210.95,5.45039816]
[1759216254079,4.73934219,211.0,210.94,0.71]
[1759216254279,0.69,210.98,210.94,0.71]
[1759216254584,4.73934219,211.0,210.93,38.02071191]
[1759216254791,0.69,211.0,210.95,0.71]
[1759216255491,0.69,210.99,210.95,0.71]
[1759216255788,0.69,211.0,210.95,5.4504031]
[1759216256986,0.69,210.99,210.95,0.71]
[1759216257297,0.69,210.98,210.94,38.02066567]
[1759216257488,0.69,210.98,210.94,38.73066567]
[1759216258094,0.69,211.0,210.94,38.02066567]
[1759216258295,0.69,211.0,210.95,0.71]
[1759216258470,16.5863438,211.01,210.95,0.71]
[1759216259191,4.73912553,211.01,210.96,4.74023511]
[1759216259572,5.42912553,211.01,210.96,4.74023511]
[1759216259770,5.42912553,211.01,210.96,5.45023511]
[1759216260181,4.73912553,211.01,210.96,5.45023511]
[1759216260391,0.69,211.0,210.94,61.13054576]
[1759216260781,0.69,211.0,210.94,60.42054576]
[1759216260971,0.69,211.0,210.95,0.71]
[1759216261372,0.69,210.99,210.95,5.45038254]
[1759216262794,0.69,210.99,210.95,38.71038254]
[1759216263681,0.69,211.01,210.96,0.71]
[1759216263884,0.69,211.0,210.96,0.71]
[1759216265077,0.69,211.0,210.96,5.45019453]
[1759216265598,4.7391943,211.01,210.96,4.74019453]
[1759216265898,0.69,210.99,210.96,4.74019453]
[1759216266874,5.4291943,211.01,210.96,5.45019453]
[1759216267369,0.69,211.0,210.96,5.45019453]
[1759216267672,27.50838109,211.05,210.97,0.71]
[1759216267992,0.69,211.04,210.98,13.59559401]
[1759216268192,0.69,211.04,210.99,0.71]
[1759216268405,0.69,211.04,210.99,33.97]
[1759216269088,4.73854773,211.04,210.99,33.97]
[1759216269295,0.69,211.03,210.99,33.97]
[1759216269677,0.69,211.03,210.99,38.70954252]
[1759216270501,20.50337467,211.06,210.99,38.70954252]
[1759216270798,3.17691899,211.07,211.0,0.71]
[1759216270799,0.69,211.07,211.0,0.71]
[1759216270995,14.94618362,211.07,211.0,0.71]
[1759216271387,19.68397096,211.07,211.01,4.73911189]
[1759216271585,19.68397096,211.07,211.01,5.44911189]
[1759216271788,26.0,211.1,211.02,0.71]
[1759216272101,0.69,211.08,211.03,33.26]
[1759216272307,0.69,211.08,211.03,33.97]
[1759216272497,0.69,211.07,211.03,33.26]
[1759216273007,0.69,211.06,211.03,33.26]
[1759216273200,0.69,211.05,211.03,33.26]
[1759216273696,0.69,211.05,211.01,27.84908738]
[1759216273697,0.69,211.05,211.02,33.26]
[1759216274880,0.69,211.07,211.02,33.97]
[1759216275504,0.69,211.06,211.02,38.70885405]
[1759216275803,5.42774428,211.08,211.03,0.71]
[1759216275994,0.69,211.08,211.04,0.71]
[1759216276386,0.69,211.08,211.02,37.99885405]
[1759216276587,0.69,211.08,211.03,0.71]
[1759216276786,0.69,211.07,211.03,0.71]
[1759216277203,0.69,211.07,211.03,5.44858338]
[1759216278622,0.69,211.06,211.03,33.24]
[1759216278982,0.69,211.05,211.01,22.4]
[1759216279190,0.69,211.04,211.02,33.24]
[1759216279506,0.69,211.03,211.02,33.24]
[1759216280238,0.69,211.03,211.01,22.4]
[1759216280406,0.69,211.03,211.01,55.64]
[1759216280986,0.69,211.03,211.01,22.4]
[1759216281209,0.69,211.03,211.01,55.64]
[1759216283503,0.69,211.03,211.01,33.24]
[1759216283904,2.21838109,211.02,210.95,22.4]
[1759216284210,2.21838109,211.01,210.95,33.24]
[1759216284389,4.73956111,210.99,210.95,33.24]
[1759216284586,0.71,210.98,210.95,33.24]
[1759216285322,0.71,210.97,210.9,0.68]
[1759216285501,0.71,210.97,210.91,46.83559401]
[1759216285698,0.71,210.96,210.91,46.83559401]
[1759216286014,0.71,210.96,210.91,47.51559401]
[1759216286984,0.71,210.96,210.91,14.27559401]
[1759216287189,0.71,210.95,210.92,33.24]
[1759216288000,4.74038112,210.96,210.92,33.92]
[1759216288405,5.45038112,210.96,210.92,33.24]
[1759216289505,5.45038112,210.96,210.92,33.92]
[1759216289700,5.45038112,210.96,210.92,33.24]
[1759216290305,2.21838109,210.95,210.93,33.24]
[1759216290508,0.71,210.94,210.93,33.24]
[1759216290704,0.71,210.94,210.89,13.59559401]
[1759216290902,0.71,210.94,210.9,33.24]
[1759216291700,2.21838109,210.94,210.9,33.24]
[1759216291898,2.21838109,210.94,210.88,22.6]
[1759216292096,2.21838109,210.93,210.89,33.24]
[1759216292421,5.45113407,210.92,210.89,33.24]
[1759216292617,5.45113407,210.92,210.9,33.24]
[1759216294322,4.7409093,210.93,210.9,33.24]
[1759216294501,5.4509093,210.93,210.9,33.24]
[1759216296504,4.7409093,210.93,210.9,33.24]
[1759216296820,5.4509093,210.93,210.9,33.24]
[1759216299924,4.7409093,210.93,210.9,33.92]
[1759216300110,4.7409093,210.93,210.9,33.24]
[1759216300315,5.4509093,210.93,210.9,33.24]
[1759216305217,0.71,210.93,210.9,33.24]
[1759216305626,0.71,210.92,210.9,33.24]
[1759216306912,5.45125023,210.92,210.9,33.24]
[1759216308927,4.7409093,210.93,210.9,33.24]
[1759216309108,5.4509093,210.93,210.9,33.24]
[1759216309313,5.4509093,210.93,210.89,0.68]
[1759216309510,5.4509093,210.93,210.9,33.24]
[1759216309926,5.45070827,210.94,210.9,33.24]
[1759216310122,0.71,210.93,210.9,33.24]
[1759216311236,5.45110266,210.93,210.9,33.24]
[1759216322720,4.74110266,210.93,210.9,33.91]
[1759216322931,0.68,210.93,210.9,33.91]
[1759216324239,4.74113407,210.92,210.9,33.91]
[1759216325950,4.74113407,210.92,210.88,0.2]
[1759216326132,7.10009088,210.89,210.88,0.2]
[1759216326328,7.78009088,210.89,210.88,0.2]
[1759216326544,10.96890506,210.89,210.88,0.2]
[1759216326747,7.78009088,210.89,210.88,0.2]
[1759216327041,5.42180852,210.89,210.88,0.2]
[1759216327221,10.96890506,210.89,210.88,0.2]
[1759216327422,7.78009088,210.89,210.88,0.2]
[1759216327817,10.96890506,210.89,210.88,0.2]
[1759216328013,7.78009088,210.89,210.88,0.2]
[1759216328217,10.96890506,210.89,210.88,0.2]
[1759216332951,25.23661486,210.89,210.88,0.2]
[1759216334847,3.18881418,210.9,210.88,34.09]
[1759216335052,4.74123725,210.92,210.89,0.67]
[1759216335426,4.7409093,210.93,210.89,0.67]
[1759216336145,4.7409093,210.93,210.88,33.42]
[1759216336348,4.7409093,210.93,210.89,0.71]
[1759216338239,4.7409093,210.93,210.9,0.71]
[1759216340662,4.7409093,210.93,210.88,38.16198732]
[1759216340834,4.7409093,210.93,210.88,34.13]
[1759216341038,0.69,210.92,210.88,34.13]
[1759216341558,4.7409093,210.93,210.89,0.71]
[1759216341759,5.4409093,210.93,210.89,0.71]
[1759216342540,0.7,210.92,210.88,33.42]
[1759216342752,4.74158368,210.9,210.88,0.2]
[1759216343051,0.7,210.89,210.88,0.2]
[1759216343745,15.0342578,210.9,210.88,0.2]
[1759216343945,4.74158368,210.9,210.88,0.2]
[1759216344148,5.44158368,210.9,210.88,0.2]
[1759216344457,0.7,210.89,210.88,0.2]
[1759216344628,5.44158368,210.9,210.88,0.2]
[1759216347331,5.44180852,210.89,210.88,0.2]
[1759216348062,2.35828236,210.92,210.88,0.91]
[1759216348063,3.19348246,210.92,210.88,0.91]
[1759216348240,0.7,210.92,210.88,0.91]
[1759216349430,5.44092804,210.93,210.88,0.2]
[1759216349655,5.44092804,210.93,210.88,0.91]
[1759216350654,0.7,210.92,210.88,0.91]
[1759216355468,3.19348246,210.94,210.89,47.50559401]
[1759216355770,3.19348246,210.97,210.9,0.71]
[1759216355944,3.19348246,210.97,210.91,13.59559401]
[1759216356146,3.19348246,210.99,210.93,13.59559401]
[1759216356337,0.7,211.01,210.93,13.59559401]
[1759216356338,3.19348246,210.98,210.94,33.91]
[1759216356542,3.19348246,211.0,210.95,4.74045982]
[1759216356750,3.19348246,210.99,210.96,0.71]
[1759216356949,3.19348246,211.0,210.96,0.71]
[1759216357142,3.19348246,210.99,210.96,0.71]
[1759216357761,3.19348246,210.99,210.96,5.45016732]